Cogmind - Beta 13 *** ADVENTURER MODE // 2024.04.14 @ 16:47:35 Player: WarlockD Result: Destroyed by G-47 Trooper with Particle Gun Performance ------------- Evolutions (3) 1500 Regions Visited (4) 800 Robots Destroyed (41) 205 Value Destroyed (1265) 1265 Prototype IDs (0) 0 Alien Tech Used (0) 0 Bonus (63) 63 TOTAL SCORE: 3833 Bonus ------- High Alert Combat Kills 63 Cogmind --------- Core Integrity 0/700 Matter 17/300 Energy 99/100 System Corruption 3% Temperature Cool (9) Movement Core (1350) Ox26 Location -7/Factory Parts ------- > --- POWER (2) -------- (None) > --- PROPULSION (4) --- Improved Gyrokinetic Inverter > --- UTILITY (4) ------ Huge Storage Unit Improved Signal Interpreter > --- WEAPON (3) ------- (None) > --- INVENTORY (25) --- Light Nuclear Core High-capacity Battery (250) Improved Signal Interpreter Target Analyzer Shield Generator Hacking Suite Peak State ------------ > --- POWER ------------ Improved Ion Engine > --- PROPULSION ------- Aluminum Leg Aluminum Leg Carbon-fiber Leg VSS Leg > --- UTILITY ---------- Huge Storage Unit Improved Sensor Array Improved Terrain Scan Processor > --- WEAPON ----------- Particle Gun Minigun > --- INVENTORY -------- High-capacity Battery Large Matter Pod Improved Signal Interpreter Shield Generator Hacking Suite Beam Rifle Assault Rifle Light Assault Rifle EMP Blaster Grenade Launcher Datajack [Rating: 23] Favorites ----------- Power Ion Engine Engine Ion Engine Power Core Light Nuclear Core Propulsion Light Treads Treads Light Treads Leg Aluminum Leg Wheel Wheel Hover Unit Improved Gyrokinetic Inverter Utility Huge Storage Unit Device Seismic Detector Storage Huge Storage Unit Processor Improved Signal Interpreter Weapon Light Assault Rifle Energy Gun EM Pulse Gun Ballistic Gun Light Assault Rifle Launcher Rocket Launcher Special Melee Weapon Datajack Build | -11 -10 -9 -8 -7 ------- Run | Yrd Mat Mat Mat Fac Slots Evolved 6 | . . 2 2 2 Power 1 | . . 1 . . Propulsion 2 | . . . 2 . Utility 2 | . . 1 . 1 Weapon 1 | . . . . 1 Parts Attached 44 | 6 1 2 26 9 Power 4 | 1 . 1 2 . Engine 3 | 1 . . 2 . Core 1 | . . 1 . . Reactor . | . . . . . Propulsion 13 | 2 . . 9 2 Treads 4 | . . . 4 . Leg 5 | . . . 4 1 Wheel 3 | 2 . . 1 . Hover 1 | . . . . 1 Flight . | . . . . . Utility 13 | 1 1 1 9 1 Device 4 | . . . 4 . Storage 5 | 1 1 1 1 1 Processor 4 | . . . 4 . Hackware . | . . . . . Protection . | . . . . . Artifact . | . . . . . Weapon 14 | 2 . . 6 6 Energy Gun 3 | 1 . . 1 1 Energy Cannon . | . . . . . Ballistic Gun 6 | 1 . . 3 2 Ballistic Cannon . | . . . . . Launcher 4 | . . . 2 2 Special Weapon . | . . . . . Impact Weapon . | . . . . . Slashing Weapon . | . . . . . Piercing Weapon . | . . . . . Special Melee Weapon 1 | . . . . 1 Unidentified Prototypes . | . . . . . Parts Lost 29 | . . . 14 15 Power 4 | . . . 4 . Propulsion 11 | . . . 6 5 Utility 2 | . . . . 2 Weapon 12 | . . . 4 8 Highest Loss Streak 7 | . . . 6 7 To Critical Strikes . | . . . . . Average Slot Usage (%) 75 | . 85 77 82 58 Engine 9 | . 14 11 12 . Core 2 | . . 11 . . Treads 5 | . . . 14 . Leg 6 | . . . 4 19 Wheel 11 | . 28 22 6 . Device 4 | . . . 8 6 Storage 10 | . 14 11 10 9 Processor 4 | . . . 7 7 Energy Gun 5 | . 14 11 1 3 Ballistic Gun 9 | . 14 11 9 6 Launcher 2 | . . . 6 . Naked Turns . | . . . . . Heaviest Build 118 | 13 18 33 118 88 Greatest Support 80 | 26 26 26 80 47 Greatest Overweight (x) 28 | . . 1 28 27 Average Overweight (x) 1 | . . . 2 2 Largest Inventory Capacity 25 | 8 10 15 25 25 Average Capacity 19 | 7 8 14 24 25 Most Carried 15 | 4 7 10 15 12 Average Carried 8 | 2 4 6 12 9 Final Capacity 25 | 8 10 15 25 25 Final Carried 10 | 2 6 10 10 6 Class Distribution -------------------- 74% | Mutant 25% | Scavenger-Mutant Dominant Class ---------------- Mutant | -10/Materials Mutant | -9/Materials Mutant | -8/Materials Scavenger-Mutant | -7/Factory Resources | -11 -10 -9 -8 -7 ----------- Run | Yrd Mat Mat Mat Fac Matter Collected 774 | 104 154 60 365 91 Remotely . | . . . . . Salvage Created 1078 | . 215 60 607 196 Parts 79 | . 17 4 51 7 Haulers Intercepted . | . . . . . Recyclers Shooed . | . . . . . Parts Field Recycled . | . . . . . Retrieved Matter . | . . . . . Parts Self-Destructed . | . . . . . Prevented . | . . . . . Kills | -11 -10 -9 -8 -7 ------- Run | Yrd Mat Mat Mat Fac Combat Hostiles Destroyed 33 | . 8 1 20 4 Guns 17 | . 8 1 5 3 AOE 16 | . . . 15 1 Classes Destroyed 8 | . 3 1 3 1 Worker 2 | . . . 2 . Builder 2 | . . . 2 . Watcher 4 | . 1 . 3 . Swarmer 13 | . 6 . 7 . Grunt 10 | . 2 . 7 1 Sentry 6 | . . 1 5 . Hunter 3 | . . . 1 2 Programmer 1 | . . . . 1 Best Kill Streak 8 | . 4 1 8 2 Combat Bots Only 7 | . 3 1 7 2 Max Kills in Single Turn 3 | . 2 1 3 1 Gunslinging 1 | . 1 . . . Exploded 2 | . . . 2 1 Melee . | . . . . . Uniques/NPCs Destroyed . | . . . . . Combat | -11 -10 -9 -8 -7 -------- Run | Yrd Mat Mat Mat Fac Hostile Shots Fired 364 | . 24 9 143 188 Missed 105 | . 11 2 45 47 Damage Taken 2944 | . 109 63 1253 1519 Core 940 | . 22 8 201 709 Absorbed by Shields . | . . . . . Ignored by Resistances 849 | . 36 17 362 434 Core Remaining (%) 88 | 100 91 98 63 . Volleys Fired 89 | . 15 4 48 22 Largest 2 | . 2 2 2 2 Hottest 90 | . 60 60 73 90 Shots Fired 160 | . 30 8 89 33 Gun 129 | . 30 8 59 32 Cannon . | . . . . . Launcher 31 | . . . 30 1 Special . | . . . . . Kinetic 107 | . 15 4 58 30 Thermal 2 | . . . . 2 Explosive 30 | . . . 30 . Electromagnetic 21 | . 15 4 1 1 Robot Hit Streak 69 | . 11 7 37 69 Robot Miss Streak 4 | . 2 3 4 . Penetration Max . | . . . . . Secondary Targets 4 | . 3 . 1 . Max Gunslinging Chain 1 | . 1 . 1 . Shots Hit Robots 123 | . 21 5 65 32 Core Hits 82 | . 12 3 53 14 Critical Kills 1 | . . . . 1 Critical Parts Destroyed . | . . . . . Critical Strikes 1 | . . . . 1 Destroy 1 | . . . . 1 Melee Attacks . | . . . . . Impact . | . . . . . Slashing . | . . . . . Piercing . | . . . . . Sneak Attacks . | . . . . . Combat Hostiles . | . . . . . Follow-up Attacks . | . . . . . Damage Inflicted 2943 | . 332 42 2183 386 Guns 1201 | . 230 42 614 315 Cannons . | . . . . . Explosions 1742 | . 102 . 1569 71 Melee . | . . . . . Ramming . | . . . . . Kinetic 976 | . 70 22 603 281 Thermal 201 | . 102 . . 99 Explosive 1569 | . . . 1569 . Electromagnetic 197 | . 160 20 11 6 Impact . | . . . . . Slashing . | . . . . . Piercing . | . . . . . Highest Corruption 3 | . . . . 3 Average Corruption 1 | . . . . 1 Corruption Purged . | . . . . . Corruption Blocked . | . . . . . Effects 3 | . . . . 3 Message Errors 1 | . . . . 1 Matter Fused 2 | . . . . 2 Overload Shots . | . . . . . Overflow Damage 82 | . . . 71 11 Projectiles . | . . . . . Explosions 82 | . . . 71 11 Melee . | . . . . . Knockbacks . | . . . . . Impact . | . . . . . Kinetic . | . . . . . Secondary . | . . . . . Self-Inflicted Damage 204 | . . . 158 46 Shots 7 | . . . 5 2 Rammed . | . . . . . Targets Rammed . | . . . . . Kicked . | . . . . . Crushed . | . . . . . Highest Temperature 109 | . 109 40 57 22 Average Temperature 24 | . 41 21 15 6 Received Heat Transfer 1431 | . 69 30 675 657 Siege Activations . | . . . . . Robots Corrupted . | . . . . . Combat Hostiles . | . . . . . Parts Fried . | . . . . . Impact Corruptions . | . . . . . Robots Melted . | . . . . . Combat Hostiles . | . . . . . Parts Melted . | . . . . . Heat Transferred 224 | . 150 . . 74 Parts Sabotaged . | . . . . . Parts Stolen . | . . . . . Parts Stripped . | . . . . . Power Chain Reactions 3 | . 2 . . 1 Alert | -11 -10 -9 -8 -7 ------- Run | Yrd Mat Mat Mat Fac Peak Influence 584 | . 273 142 584 165 Initial 143 | . . 97 8 143 Average 163 | . 146 78 324 94 Maximum Alert Level 2 | . 1 . 2 . Low Security (%) 71 | 100 65 100 27 100 Level 1 21 | . 34 . 51 . Level 2 7 | . . . 20 . Level 3 . | . . . . . Level 4 . | . . . . . Level 5 . | . . . . . High Security . | . . . . . Max Security . | . . . . . Squads Dispatched 8 | . . 2 3 3 Investigation 3 | . . 1 1 1 Extermination 2 | . . . . 2 Reinforcement 3 | . . 1 2 . Assault . | . . . . . Garrison . | . . . . . Intercept . | . . . . . Searches Triggered . | . . . . . Construction Impeded 1 | . . . 1 . Haulers Reinforced . | . . . . . Active Scanning Responses . | . . . . . Cargo Convoy Interrupts . | . . . . . Stealth | -11 -10 -9 -8 -7 --------- Run | Yrd Mat Mat Mat Fac Distress Signals 6 | . 1 1 4 . Communications Jammed . | . . . . . Distress Signals . | . . . . . Times Spotted 59 | . 11 9 32 7 Peak Tracking Total 7 | . 4 3 7 4 Tactical Retreats . | . . . . . Traps | -11 -10 -9 -8 -7 ------- Run | Yrd Mat Mat Mat Fac Traps Triggered 2 | . . 1 1 . Indirectly . | . . . . . Trap Hack Attempts . | . . . . . Triggered . | . . . . . Disarmed . | . . . . . Reprogrammed . | . . . . . Reused . | . . . . . Traps Extracted . | . . . . . Installed . | . . . . . Triggered . | . . . . . Machines | -11 -10 -9 -8 -7 ---------- Run | Yrd Mat Mat Mat Fac Machines Disabled 8 | . . 1 7 . Max in Single Turn 2 | . . 1 2 . Machines Repaired . | . . . . . Machines Dismantled . | . . . . . Machines Sabotaged . | . . . . . Overloaded Fab Kills . | . . . . . Hacking | -11 -10 -9 -8 -7 --------- Run | Yrd Mat Mat Mat Fac Machines Accessed 7 | . 4 . 2 1 Terminals 5 | . 4 . 1 . Fabricators 1 | . . . . 1 Repair Stations . | . . . . . Recycling Units . | . . . . . Scanalyzers 1 | . . . 1 . Garrison Access . | . . . . . Total Hacks 23 | . 14 . 6 3 Successful 14 | . 9 . 4 1 Failed 8 | . 4 . 2 2 Catastrophic . | . . . . . Database Lockouts 1 | . 1 . . . Manual . | . . . . . Terminals 17 | . 14 . 3 . Fabricators 3 | . . . . 3 Repair Stations . | . . . . . Recycling Units . | . . . . . Scanalyzers 3 | . . . 3 . Garrison Access . | . . . . . Terminal Hacks 10 | . 9 . 1 . Record 4 | . 3 . 1 . Robot Analysis 1 | . 1 . . . Alert Level 1 | . 1 . . . Locate Traps 2 | . 2 . . . Reinforcement Status 1 | . 1 . . . Recall Investigation 1 | . 1 . . . Fabricator Hacks 1 | . . . . 1 Build 1 | . . . . 1 Repair Station Hacks . | . . . . . Recycling Unit Hacks . | . . . . . Scanalyzer 3 | . . . 3 . Insert Component 2 | . . . 2 . Analyze 1 | . . . 1 . Garrison Access Hacks . | . . . . . Unauthorized Hacks . | . . . . . Terminals . | . . . . . Fabricators . | . . . . . Repair Stations . | . . . . . Recycling Units . | . . . . . Scanalyzers . | . . . . . Garrison Access . | . . . . . Data Cores Recovered . | . . . . . Used . | . . . . . Hacking Detections 6 | . 3 . 2 1 Full Trace Events 4 | . 1 . 2 1 Feedback Events . | . . . . . Feedback Blocked . | . . . . . Robot Schematics Acquired . | . . . . . Robots Built . | . . . . . Authchips . | . . . . . Time . | . . . . . Total Robot Build Rating . | . . . . . Part Schematics Acquired 1 | . . . 1 . Parts Built 2 | . . . . 2 Authchips . | . . . . . Time 58 | . . . . 58 Total Part Build Rating 14 | . . . . 14 Parts Repaired . | . . . . . Time . | . . . . . Parts Recycled . | . . . . . Recycled Matter . | . . . . . Retrieved Matter . | . . . . . Retrieved Components . | . . . . . Parts Scanalyzed 1 | . . . 1 . Part Schematics Acquired 1 | . . . 1 . Parts Damaged . | . . . . . Bothacking | -11 -10 -9 -8 -7 ------------ Run | Yrd Mat Mat Mat Fac Used RIF Installer . | . . . . . Robots Hacked . | . . . . . Non-combat . | . . . . . Combat . | . . . . . Robot Hacks Applied . | . . . . . Relay Couplers Released . | . . . . . Fabnet Peak Effective % . | . . . . . Robots Rewired . | . . . . . Allies Hacked . | . . . . . Hacks Repelled . | . . . . . Allies | -11 -10 -9 -8 -7 -------- Run | Yrd Mat Mat Mat Fac Total Allies . | . . . . . Largest Group . | . . . . . Highest-Rated Group . | . . . . . Highest-Rated Ally . | . . . . . Total Orders . | . . . . . Ally Attacks . | . . . . . Total Damage . | . . . . . Kills . | . . . . . Allies Corrupted . | . . . . . Allies Melted . | . . . . . Intel | -11 -10 -9 -8 -7 ------- Run | Yrd Mat Mat Mat Fac Robot Analysis Total 1 | . 1 . . . Derelict Logs Recovered . | . . . . . Drone Launches . | . . . . . Drone Recoveries . | . . . . . Exploration | -11 -10 -9 -8 -7 ------------- Run | Yrd Mat Mat Mat Fac Turns Passed 2782 | 317 314 568 936 647 Spaces Moved 1208 | 52 294 377 303 182 Core 22 | 16 . . 2 4 Treads 155 | . . . 155 . Legs 230 | . . . 53 177 Wheels 800 | 36 294 377 93 . Hover 1 | . . . . 1 Flight . | . . . . . Fastest Speed 50 | 50 90 90 120 187 Average Speed 160 | 77 90 103 246 270 Slowest Speed 1450 | 90 90 105 1450 1400 Overloaded Moves . | . . . . . Propulsion Burnouts . | . . . . . Robots Hopped . | . . . . . Cave-ins Triggered . | . . . . . Exploration Rate (%) 28 | 5 65 23 43 5 Regions Visited 4 Branch Regions . Pre-discovered Areas . | . . . . . Known Exits Taken 1 | . . . 1 . Unknown Exits Taken 3 | 1 1 1 . . Scrap Searched . | . . . . . Spaces Dug . | . . . . . Terrain Destroyed 236 | . 7 . 227 2 Melee . | . . . . . Projectile . | . . . . . AOE 236 | . 7 . 227 2 Terrain Rammed . | . . . . . Walls Destroyed . | . . . . . Machines Disabled . | . . . . . Actions | -11 -10 -9 -8 -7 --------- Run | Yrd Mat Mat Mat Fac Total 1924 | 328 316 547 413 320 Wait 532 | 263 1 158 8 102 Move 1204 | 51 293 376 302 182 Hop . | . . . . . Pick Up 47 | 8 5 6 23 5 Fast Attach . | . . . . . Attach 40 | 6 1 2 22 9 Detach 1 | . . . 1 . Swap 4 | . . . 4 . Drop 7 | . 1 1 5 . Fire 89 | . 15 4 48 22 Melee . | . . . . . Ram . | . . . . . Kick . | . . . . . Crush . | . . . . . Escape Stasis . | . . . . . Rewire . | . . . . . Trap . | . . . . . Miscellaneous . | . . . . . Route ------- -11/Scrapyard -10/Materials (discovered 2 exits: [*Mat] / [*Min]) -9/Materials -8/Materials -7/Factory History --------- Turn | Location | Event 7 | -11/Scrapyard | Discovered new exit (range 15) 318 | -11/Scrapyard | Entered Materials 319 | -10/Materials | Build established: Mutant 414 | -10/Materials | Central database locked down 504 | -10/Materials | Discovered new exit (range 13) 569 | -10/Materials | Discovered new exit (range 16) 632 | -10/Materials | Entered another Materials area 632 | -9/Materials | Evolved 2 slots: Power x1, Utility x1 1090 | -9/Materials | Discovered new exit (range 14) 1200 | -9/Materials | Entered another Materials area 1200 | -8/Materials | Evolved 2 slots: Propulsion x2 1331 | -8/Materials | Lost 3 parts (1p2n) 1833 | -8/Materials | Destroyed 7 combat bots 2006 | -8/Materials | Lost 6 parts (1p4n1w) 2129 | -8/Materials | Discovered new exit (range 4) 2133 | -8/Materials | Identified exit to Factory 2136 | -8/Materials | Entered Factory 2136 | -7/Factory | Evolved 2 slots: Utility x1, Weapon x1 2293 | -7/Factory | Build established: Scavenger-Mutant 2482 | -7/Factory | Fabricated Imp. Gyrokinetic Inverter (x2) 2532 | -7/Factory | Lost 6 parts (2n4w) 2750 | -7/Factory | Core integrity fell below 50% 2769 | -7/Factory | Core integrity fell below 20% 2777 | -7/Factory | Lost 7 parts (2n2u3w) 2783 | -7/Factory | Destroyed by G-47 Trooper with Particle Gun Last Messages --------------- 02682_ G-47 Trooper suffers critical hit (Destroy). 02682_ G-47 Trooper destroyed. 02689_ Datajack destroyed. 02692_ K-01 Serf collects debris. 02695_ 5CCVO TVQK,WH4G7NGO0FK%I,Z 02703_ Lgt. Assault Rifle destroyed. 02707_ Assault Rifle destroyed. 02709_ K-01 Serf collects debris. 02711_ M-13 Machinist repairs G-47 Trooper. 02712_ Acquired Aluminum Leg. 02715_ Imp. Sensor Array destroyed. 02716_ K-01 Serf collects debris. 02727_ Acquired Lgt. Nuclear Core. 02736_ Aluminum Leg destroyed. 02746_ Lrg. Matter Pod destroyed. 02752_ Door malfunctions. 02759_ T-07 Excavator destroyed. Map ----- +----------------------------------------------------+ | ?????###########+## #???????????????? | | ?????# # ################# | | ?????# # | | ?????# + | | ?????# # | | ?????# # | | ?????# # | | ?????# #########+##### | | ?????# ## #??????????? | | ?????# ## """ """ #??????????? | | ?????# ## """ """ #??????????? | | ?????# ## """ """ #??????????? | | ?????# ## #??????????? | | ?????############### #??????????? | | ????????????? #?# #??????????? | | ????????????"" #?# ] #??????????? | | ????????????"" ########+#######???????? | | ????????????"" # #???????? | | ??????????"""" # """ """"" #???????? | | ???????????""" # """"" "" F" #?????? | | ????????????"" # """"" ""="" #???? | | ????????????? # #??? | | ?????????????? # ! ! #? | | ???????########;#############+### | | ???"" # %* u [ !! | | ???"" / @ g !! | | ???"" # g p % | | ???????### #####+####### | | ?????????# # #???+#+##### | | ?????????# +% #??????????? | | ?????????# ########## #??????????? | | ?????????# ?????????# #??????????? | | ?????????#??????????# #??????????? | | ????????????????????# #??????????? | | ????????????????????# #??????????? | | ????????????????????# #??????????? | | ????????????????????# #??????????? | | ????????????????????##########??????????? | | ????????????????????????????????????????? | | ????????????????????????????????????????? | | ????????????????????????????????????????? | | ????????????????????????????????????????? | | ????????????????????????????????????????? | | ????????????????????????????????????????? | | ????????????????????????????????????????? | | ????????????????????????????????????????? | | ????????????????????????????????????????? | | ????????????????????????????????????????? | | ????????????????????????????????????????? | | ????????????????????????????????????????? | +----------------------------------------------------+ Best States ------------- Heat Dissipation 34 Energy Generation 19 Energy Capacity 310 Matter Stores 300 Matter Capacity 450 Sight Range 16 Robot Scan Range 15 Terrain Scan Density 110 Additional Mass Support 6 Resistance: KI 20 Resistance: TH 20 Resistance: EX 20 Resistance: EM 20 Resistance: I 20 Resistance: S 20 Resistance: P 20 Evasion (%) 50 Recoil Reduction 4 Offensive Hacking 10 Item Schematics ----------------- Hacking Suite | -8/Materials | Scanalyzed Robot Schematics ------------------ None Fabricated ------------ Imp. Gyrokinetic Inverter | x2 | -7/Factory | Preloaded Alien Tech Used ----------------- None Achievements -------------- I Spy Just What I Needed Remodeling Challenges ------------ None Game ------ Seed HeavyWaveBeam Manual? 0 Play Time 00:32:57 Cumulative 4.2 hours Start 2024.04.14 @ 16:16:02 End 2024.04.14 @ 16:47:35 Sessions 1 Manual Loads 0 Difficulty Adventurer Special Mode None Game No. 6 Rogue 0 Adventurer 6 Explorer 0 Win Type - Total 0 Types 0/0/0/0/0/0/0/0/0 Lore% 11 Gallery% 12 Achievement% 10 Wizard Run 0 Options --------- Layout 1 ASCII 0 Keyboard 0 Movement Mouse Keybinds 0 Fullscreen 1 Font 24/Smallcaps Map View 50x35 Zoom Use 0% Tactical HUD 1 Map Filters NONE Filters NONE Steam 1 RUN: 64f9d8f9-a45b-4668-a531-bf75ea655f35